[Event "Titled Tuesday Blitz August 31 2021"]
[White "Petriashvili, Nikoloz"]
[Black "Grachev, Boris"]
[WhiteFideId "13611216"]
[BlackFideId "4129199"]
[WhiteElo "2430"]
[BlackElo "2580"]
[Result "1/2-1/2"]
[Round "11"]
[TimeControl "180+1"]
[Date "2021.08.31"]
[WhiteClock "0:00:17"]
[BlackClock "0:00:08"]

1. e4 {[%clk 0:03:00]}  c5 {[%clk 0:02:59]} 2. Nf3 {[%clk 0:03:01]}  e6 {[%clk 0:02:59]} 3. b3 {[%clk 0:02:59]}  b6 {[%clk 0:02:59]} 4. Bb2 {[%clk 0:02:59]}  Bb7 {[%clk 0:02:59]} 5. Nc3 {[%clk 0:02:59]}  Nc6 {[%clk 0:02:56]} 6. Bc4 {[%clk 0:02:53]}  a6 {[%clk 0:02:56]} 7. O-O {[%clk 0:02:52]}  b5 {[%clk 0:02:52]} 8. Be2 {[%clk 0:02:52]}  Nf6 {[%clk 0:02:49]} 9. d3 {[%clk 0:02:48]}  Bd6 {[%clk 0:02:42]} 10. Re1 {[%clk 0:02:48]}  Qc7 {[%clk 0:02:41]} 11. Bf1 {[%clk 0:02:46]}  Ne5 {[%clk 0:02:36]} 12. g3 {[%clk 0:02:35]}  O-O {[%clk 0:02:32]} 13. Bg2 {[%clk 0:02:32]}  Nxf3+ {[%clk 0:02:31]} 14. Bxf3 {[%clk 0:02:29]}  Be5 {[%clk 0:02:32]} 15. Bg2 {[%clk 0:02:23]}  Rae8 {[%clk 0:02:31]} 16. Qd2 {[%clk 0:02:16]}  h6 {[%clk 0:02:25]} 17. Nd1 {[%clk 0:02:13]}  Bxb2 {[%clk 0:02:23]} 18. Nxb2 {[%clk 0:02:14]}  d5 {[%clk 0:02:22]} 19. Qe2 {[%clk 0:01:44]}  e5 {[%clk 0:02:19]} 20. exd5 {[%clk 0:01:26]}  Bxd5 {[%clk 0:02:19]} 21. Nd1 {[%clk 0:01:21]}  Bxg2 {[%clk 0:02:06]} 22. Kxg2 {[%clk 0:01:22]}  e4 {[%clk 0:02:07]} 23. Ne3 {[%clk 0:01:21]}  Re6 {[%clk 0:02:01]} 24. Rad1 {[%clk 0:01:18]}  exd3 {[%clk 0:01:58]} 25. Qxd3 {[%clk 0:01:14]}  Rfe8 {[%clk 0:01:57]} 26. c4 {[%clk 0:01:10]}  Qb7+ {[%clk 0:01:51]} 27. Kg1 {[%clk 0:01:10]}  Ng4 {[%clk 0:01:46]} 28. Qd5 {[%clk 0:00:45]}  Qe7 {[%clk 0:01:46]} 29. Ng2 {[%clk 0:00:37]}  Qf6 {[%clk 0:01:38]} 30. Qd2 {[%clk 0:00:24]}  Ne5 {[%clk 0:01:30]} 31. Re3 {[%clk 0:00:23]}  Nf3+ {[%clk 0:01:29]} 32. Rxf3 {[%clk 0:00:22]}  Qxf3 {[%clk 0:01:29]} 33. Ne3 {[%clk 0:00:22]}  bxc4 {[%clk 0:01:19]} 34. bxc4 {[%clk 0:00:22]}  h5 {[%clk 0:00:59]} 35. Qd5 {[%clk 0:00:21]}  Rxe3 {[%clk 0:00:55]} 36. fxe3 {[%clk 0:00:21]}  Qxe3+ {[%clk 0:00:56]} 37. Kh1 {[%clk 0:00:21]}  g6 {[%clk 0:00:47]} 38. Rf1 {[%clk 0:00:21]}  Qe4+ {[%clk 0:00:47]} 39. Qxe4 {[%clk 0:00:20]}  Rxe4 {[%clk 0:00:48]} 40. Rf6 {[%clk 0:00:21]}  Re1+ {[%clk 0:00:33]} 41. Kg2 {[%clk 0:00:20]}  Re2+ {[%clk 0:00:34]} 42. Kg1 {[%clk 0:00:16]}  Re6 {[%clk 0:00:24]} 43. Rf2 {[%clk 0:00:16]}  Kg7 {[%clk 0:00:19]} 44. Rb2 {[%clk 0:00:13]}  Re1+ {[%clk 0:00:16]} 45. Kf2 {[%clk 0:00:12]}  Rc1 {[%clk 0:00:17]} 46. Rb6 {[%clk 0:00:11]}  Rc2+ {[%clk 0:00:15]} 47. Kg1 {[%clk 0:00:11]}  Rxa2 {[%clk 0:00:12]} 48. Rc6 {[%clk 0:00:12]}  Ra5 {[%clk 0:00:12]} 49. h4 {[%clk 0:00:10]}  Kf8 {[%clk 0:00:12]} 50. Rc7 {[%clk 0:00:10]}  Ke8 {[%clk 0:00:12]} 51. Kg2 {[%clk 0:00:10]}  Ra2+ {[%clk 0:00:11]} 52. Kf3 {[%clk 0:00:10]}  Ra5 {[%clk 0:00:10]} 53. Ke4 {[%clk 0:00:10]}  Ra3 {[%clk 0:00:08]} 54. Kf4 {[%clk 0:00:11]}  a5 {[%clk 0:00:06]} 55. Rxc5 {[%clk 0:00:11]}  Kd7 {[%clk 0:00:07]} 56. Rb5 {[%clk 0:00:05]}  Ra4 {[%clk 0:00:07]} 57. Rc5 {[%clk 0:00:04]}  Kd6 {[%clk 0:00:06]} 58. Rc8 {[%clk 0:00:04]}  Rb4 {[%clk 0:00:06]} 59. Kg5 {[%clk 0:00:02]}  Kd7 {[%clk 0:00:05]} 60. Ra8 {[%clk 0:00:02]}  Rxc4 {[%clk 0:00:05]} 61. Rxa5 {[%clk 0:00:02]}  Rg4+ {[%clk 0:00:03]} 62. Kf6 {[%clk 0:00:02]}  Rxg3 {[%clk 0:00:04]} 63. Kxf7 {[%clk 0:00:03]}  Rg4 {[%clk 0:00:04]} 64. Ra6 {[%clk 0:00:03]}  Rxh4 {[%clk 0:00:02]} 65. Kxg6 {[%clk 0:00:04]}  Rh1 {[%clk 0:00:02]} 66. Ra7+ {[%clk 0:00:03]}  Ke6 {[%clk 0:00:02]} 67. Ra6+ {[%clk 0:00:04]}  Ke5 {[%clk 0:00:03]} 68. Ra5+ {[%clk 0:00:04]}  Ke4 {[%clk 0:00:03]} 69. Ra4+ {[%clk 0:00:04]}  Kf3 {[%clk 0:00:03]} 70. Kg5 {[%clk 0:00:05]}  h4 {[%clk 0:00:03]} 71. Ra3+ {[%clk 0:00:04]}  Ke4 {[%clk 0:00:03]} 72. Kg4 {[%clk 0:00:04]}  Rg1+ {[%clk 0:00:03]} 73. Kh3 {[%clk 0:00:04]}  Rh1+ {[%clk 0:00:03]} 74. Kg2 {[%clk 0:00:04]}  Rd1 {[%clk 0:00:03]} 75. Ra4+ {[%clk 0:00:04]}  Ke3 {[%clk 0:00:03]} 76. Ra8 {[%clk 0:00:04]}  Rd2+ {[%clk 0:00:03]} 77. Kh3 {[%clk 0:00:04]}  Rd4 {[%clk 0:00:04]} 78. Re8+ {[%clk 0:00:04]}  Kf3 {[%clk 0:00:04]} 79. Rf8+ {[%clk 0:00:05]}  Rf4 {[%clk 0:00:05]} 80. Re8 {[%clk 0:00:05]}  Re4 {[%clk 0:00:05]} 81. Rf8+ {[%clk 0:00:05]}  Ke2 {[%clk 0:00:05]} 82. Ra8 {[%clk 0:00:06]}  Re3+ {[%clk 0:00:05]} 83. Kg2 {[%clk 0:00:06]}  h3+ {[%clk 0:00:05]} 84. Kh2 {[%clk 0:00:06]}  Kd3 {[%clk 0:00:05]} 85. Rd8+ {[%clk 0:00:06]}  Ke4 {[%clk 0:00:06]} 86. Re8+ {[%clk 0:00:07]}  Kf4 {[%clk 0:00:06]} 87. Rf8+ {[%clk 0:00:07]}  Kg4 {[%clk 0:00:07]} 88. Rg8+ {[%clk 0:00:08]}  Kh4 {[%clk 0:00:07]} 89. Rh8+ {[%clk 0:00:08]}  Kg4 {[%clk 0:00:08]} 90. Rg8+ {[%clk 0:00:09]}  Kf5 {[%clk 0:00:08]} 91. Rf8+ {[%clk 0:00:09]}  Kg6 {[%clk 0:00:09]} 92. Rh8 {[%clk 0:00:09]}  Kg5 {[%clk 0:00:08]} 93. Rxh3 {[%clk 0:00:09]}  Re2+ {[%clk 0:00:08]} 94. Kg1 {[%clk 0:00:10]}  Kg4 {[%clk 0:00:08]} 95. Rd3 {[%clk 0:00:10]}  Re4 {[%clk 0:00:08]} 96. Kg2 {[%clk 0:00:10]}  Re2+ {[%clk 0:00:08]} 97. Kf1 {[%clk 0:00:11]}  Re4 {[%clk 0:00:09]} 98. Kf2 {[%clk 0:00:11]}  Rf4+ {[%clk 0:00:09]} 99. Kg2 {[%clk 0:00:12]}  Re4 {[%clk 0:00:09]} 100. Rd2 {[%clk 0:00:12]}  Kf4 {[%clk 0:00:09]} 101. Kf2 {[%clk 0:00:13]}  Kf5 {[%clk 0:00:09]} 102. Kf3 {[%clk 0:00:13]}  Rf4+ {[%clk 0:00:09]} 103. Kg3 {[%clk 0:00:13]}  Rg4+ {[%clk 0:00:10]} 104. Kh3 {[%clk 0:00:14]}  Re4 {[%clk 0:00:10]} 105. Rd8 {[%clk 0:00:14]}  Kf4 {[%clk 0:00:10]} 106. Rf8+ {[%clk 0:00:14]}  Ke3 {[%clk 0:00:09]} 107. Kg3 {[%clk 0:00:15]}  Re7 {[%clk 0:00:09]} 108. Rf3+ {[%clk 0:00:15]}  Ke4 {[%clk 0:00:08]} 109. Rf1 {[%clk 0:00:16]}  Rg7+ {[%clk 0:00:08]} 110. Kh4 {[%clk 0:00:16]}  Ke3 {[%clk 0:00:08]} 111. Rf6 {[%clk 0:00:16]}  Ke4 {[%clk 0:00:08]} 112. Kh5 {[%clk 0:00:16]}  Ke5 {[%clk 0:00:08]} 113. Rg6 {[%clk 0:00:16]}  Rxg6 {[%clk 0:00:08]} 114. Kxg6 {[%clk 0:00:17]} 1/2-1/2


[Site "https://www.chess.com"]

[Event "Titled Tuesday Blitz August 31 2021"]
[White "Polivanov, Anatoliy"]
[Black "Leenhouts, Koen"]
[WhiteFideId "14109468"]
[BlackFideId "1008439"]
[WhiteElo "2472"]
[BlackElo "2409"]
[Result "1/2-1/2"]
[Round "11"]
[TimeControl "180+1"]
[Date "2021.08.31"]
[WhiteClock "0:00:07"]
[BlackClock "0:00:14"]

1. d4 {[%clk 0:03:00]}  d5 {[%clk 0:02:59]} 2. Bg5 {[%clk 0:03:00]}  Nd7 {[%clk 0:02:54]} 3. c4 {[%clk 0:02:59]}  dxc4 {[%clk 0:02:49]} 4. e4 {[%clk 0:02:57]}  Nb6 {[%clk 0:02:49]} 5. Nc3 {[%clk 0:02:57]}  h6 {[%clk 0:02:42]} 6. Bh4 {[%clk 0:02:56]}  Nf6 {[%clk 0:02:41]} 7. Nf3 {[%clk 0:02:56]}  Bg4 {[%clk 0:02:39]} 8. Be2 {[%clk 0:02:35]}  e6 {[%clk 0:02:26]} 9. e5 {[%clk 0:02:34]}  g5 {[%clk 0:02:26]} 10. Nxg5 {[%clk 0:02:33]}  Bxe2 {[%clk 0:02:24]} 11. Qxe2 {[%clk 0:02:30]}  hxg5 {[%clk 0:02:15]} 12. Bxg5 {[%clk 0:02:30]}  Be7 {[%clk 0:02:12]} 13. exf6 {[%clk 0:02:28]}  Bxf6 {[%clk 0:02:13]} 14. Be3 {[%clk 0:02:15]}  Bxd4 {[%clk 0:01:57]} 15. O-O-O {[%clk 0:02:14]}  Bxe3+ {[%clk 0:01:56]} 16. Qxe3 {[%clk 0:02:15]}  Qe7 {[%clk 0:01:40]} 17. h4 {[%clk 0:02:02]}  Rd8 {[%clk 0:01:32]} 18. Rxd8+ {[%clk 0:02:00]}  Kxd8 {[%clk 0:01:33]} 19. h5 {[%clk 0:02:00]}  Nd5 {[%clk 0:01:14]} 20. Qe5 {[%clk 0:01:46]}  Qf6 {[%clk 0:01:00]} 21. Qxf6+ {[%clk 0:01:26]}  Nxf6 {[%clk 0:01:01]} 22. h6 {[%clk 0:01:27]}  Ng4 {[%clk 0:00:58]} 23. h7 {[%clk 0:01:19]}  Nf6 {[%clk 0:00:57]} 24. Rh6 {[%clk 0:01:17]}  Ke7 {[%clk 0:00:55]} 25. Nb5 {[%clk 0:01:04]}  c6 {[%clk 0:00:49]} 26. Nxa7 {[%clk 0:01:04]}  Rxh7 {[%clk 0:00:47]} 27. Nc8+ {[%clk 0:01:00]}  Kd8 {[%clk 0:00:31]} 28. Rxh7 {[%clk 0:00:55]}  Nxh7 {[%clk 0:00:32]} 29. Nd6 {[%clk 0:00:55]}  b5 {[%clk 0:00:31]} 30. Nxf7+ {[%clk 0:00:52]}  Ke7 {[%clk 0:00:32]} 31. Ne5 {[%clk 0:00:52]}  Kd6 {[%clk 0:00:32]} 32. f4 {[%clk 0:00:52]}  Kd5 {[%clk 0:00:29]} 33. g4 {[%clk 0:00:49]}  Ke4 {[%clk 0:00:28]} 34. g5 {[%clk 0:00:42]}  Kxf4 {[%clk 0:00:23]} 35. g6 {[%clk 0:00:40]}  Nf6 {[%clk 0:00:22]} 36. Nxc6 {[%clk 0:00:37]}  e5 {[%clk 0:00:20]} 37. Kd2 {[%clk 0:00:25]}  Kf5 {[%clk 0:00:19]} 38. g7 {[%clk 0:00:23]}  Kg6 {[%clk 0:00:17]} 39. Nxe5+ {[%clk 0:00:22]}  Kxg7 {[%clk 0:00:18]} 40. Kc3 {[%clk 0:00:22]}  Nd5+ {[%clk 0:00:15]} 41. Kd4 {[%clk 0:00:22]}  Nb4 {[%clk 0:00:15]} 42. a3 {[%clk 0:00:20]}  Nc2+ {[%clk 0:00:15]} 43. Kc5 {[%clk 0:00:16]}  c3 {[%clk 0:00:14]} 44. bxc3 {[%clk 0:00:15]}  Nxa3 {[%clk 0:00:15]} 45. Nc6 {[%clk 0:00:12]}  Nb1 {[%clk 0:00:14]} 46. Kxb5 {[%clk 0:00:07]}  Nxc3+ {[%clk 0:00:14]} 1/2-1/2


[Site "https://www.chess.com"]

[Event "Titled Tuesday Blitz August 31 2021"]
[White "Ponikarovsky, Alexey"]
[Black "Aldokhin, Ivan"]
[WhiteFideId "4122887"]
[BlackFideId "24115720"]
[WhiteElo "1944"]
[BlackElo "2306"]
[Result "0-1"]
[Round "11"]
[TimeControl "180+1"]
[Date "2021.08.31"]
[WhiteClock "0:00:20"]
[BlackClock "0:00:09"]

1. e4 {[%clk 0:02:43]}  c5 {[%clk 0:02:59]} 2. d4 {[%clk 0:02:43]}  cxd4 {[%clk 0:02:59]} 3. Nf3 {[%clk 0:02:44]}  e6 {[%clk 0:02:58]} 4. Bc4 {[%clk 0:02:30]}  Nc6 {[%clk 0:02:57]} 5. O-O {[%clk 0:02:30]}  Nf6 {[%clk 0:02:56]} 6. Qe2 {[%clk 0:02:28]}  d6 {[%clk 0:02:34]} 7. Rd1 {[%clk 0:02:28]}  Be7 {[%clk 0:02:28]} 8. c3 {[%clk 0:02:28]}  d5 {[%clk 0:02:22]} 9. exd5 {[%clk 0:02:28]}  exd5 {[%clk 0:02:23]} 10. Bb3 {[%clk 0:02:28]}  O-O {[%clk 0:02:19]} 11. cxd4 {[%clk 0:02:28]}  Bg4 {[%clk 0:02:18]} 12. Be3 {[%clk 0:02:28]}  Re8 {[%clk 0:02:13]} 13. Nc3 {[%clk 0:02:29]}  Na5 {[%clk 0:02:05]} 14. Ba4 {[%clk 0:02:27]}  Rf8 {[%clk 0:02:04]} 15. h3 {[%clk 0:02:27]}  Bf5 {[%clk 0:01:50]} 16. Bf4 {[%clk 0:02:26]}  Nc4 {[%clk 0:01:33]} 17. Rac1 {[%clk 0:02:25]}  Nd6 {[%clk 0:01:25]} 18. Ne5 {[%clk 0:02:21]}  Nde4 {[%clk 0:01:20]} 19. Nxe4 {[%clk 0:02:21]}  Nxe4 {[%clk 0:01:19]} 20. Qb5 {[%clk 0:02:16]}  Bh4 {[%clk 0:01:07]} 21. Be3 {[%clk 0:02:12]}  Be6 {[%clk 0:01:02]} 22. Nf3 {[%clk 0:02:07]}  Be7 {[%clk 0:00:59]} 23. Bb3 {[%clk 0:02:05]}  Nd6 {[%clk 0:00:52]} 24. Qe2 {[%clk 0:02:02]}  Nc4 {[%clk 0:00:51]} 25. Bxc4 {[%clk 0:01:58]}  dxc4 {[%clk 0:00:51]} 26. d5 {[%clk 0:01:59]}  Bxd5 {[%clk 0:00:42]} 27. Ne5 {[%clk 0:01:56]}  Qa5 {[%clk 0:00:39]} 28. Nxc4 {[%clk 0:01:45]}  Bxc4 {[%clk 0:00:39]} 29. Qxc4 {[%clk 0:01:42]}  Bf6 {[%clk 0:00:37]} 30. Qb3 {[%clk 0:01:41]}  b6 {[%clk 0:00:35]} 31. Rd5 {[%clk 0:01:38]}  Qa6 {[%clk 0:00:33]} 32. Rcd1 {[%clk 0:01:38]}  Rad8 {[%clk 0:00:25]} 33. g4 {[%clk 0:01:33]}  Rxd5 {[%clk 0:00:23]} 34. Rxd5 {[%clk 0:01:34]}  h6 {[%clk 0:00:23]} 35. a3 {[%clk 0:01:29]}  Qb7 {[%clk 0:00:22]} 36. Rf5 {[%clk 0:01:22]}  Rd8 {[%clk 0:00:19]} 37. Bxh6 {[%clk 0:01:16]}  Qe4 {[%clk 0:00:17]} 38. Be3 {[%clk 0:01:11]}  Rd3 {[%clk 0:00:12]} 39. Qc2 {[%clk 0:00:41]}  Rxe3 {[%clk 0:00:11]} 40. Qc8+ {[%clk 0:00:41]}  Qe8 {[%clk 0:00:12]} 41. Qxe8+ {[%clk 0:00:36]}  Rxe8 {[%clk 0:00:12]} 42. b4 {[%clk 0:00:35]}  Re4 {[%clk 0:00:12]} 43. Kg2 {[%clk 0:00:34]}  Bb2 {[%clk 0:00:12]} 44. Rd5 {[%clk 0:00:32]}  Bxa3 {[%clk 0:00:11]} 45. Rd8+ {[%clk 0:00:32]}  Kh7 {[%clk 0:00:12]} 46. Rd7 {[%clk 0:00:33]}  Bxb4 {[%clk 0:00:11]} 47. Rxa7 {[%clk 0:00:33]}  Kg6 {[%clk 0:00:11]} 48. h4 {[%clk 0:00:32]}  Bc5 {[%clk 0:00:09]} 49. f3 {[%clk 0:00:30]}  Re2+ {[%clk 0:00:09]} 50. Kg3 {[%clk 0:00:31]}  Bf2+ {[%clk 0:00:09]} 51. Kh3 {[%clk 0:00:28]}  Bc5 {[%clk 0:00:10]} 52. Kg3 {[%clk 0:00:28]}  Bd6+ {[%clk 0:00:10]} 53. f4 {[%clk 0:00:27]}  Re3+ {[%clk 0:00:11]} 54. Kf2 {[%clk 0:00:28]}  Bxf4 {[%clk 0:00:11]} 55. Rb7 {[%clk 0:00:26]}  Ra3 {[%clk 0:00:11]} 56. Rxb6+ {[%clk 0:00:25]}  Kh7 {[%clk 0:00:09]} 57. Rb4 {[%clk 0:00:24]}  Bd6 {[%clk 0:00:09]} 58. Rb5 {[%clk 0:00:22]}  Be7 {[%clk 0:00:09]} 59. Re5 {[%clk 0:00:21]}  Bxh4+ {[%clk 0:00:08]} 60. Kg2 {[%clk 0:00:20]}  Bf6 {[%clk 0:00:09]} 0-1


[Site "https://www.chess.com"]

[Event "Titled Tuesday Blitz August 31 2021"]
[White "Postny, Evgeny"]
[Black "Potapova, Margarita"]
[WhiteFideId "2804344"]
[BlackFideId "14126869"]
[WhiteElo "2521"]
[BlackElo "2214"]
[Result "0-1"]
[Round "11"]
[TimeControl "180+1"]
[Date "2021.08.31"]
[WhiteClock "0:01:42"]
[BlackClock "0:02:00"]

1. e4 {[%clk 0:02:49]}  c5 {[%clk 0:02:59]} 2. Nf3 {[%clk 0:02:48]}  d6 {[%clk 0:03:00]} 3. Bb5+ {[%clk 0:02:48]}  Nd7 {[%clk 0:03:00]} 4. O-O {[%clk 0:02:47]}  a6 {[%clk 0:03:00]} 5. Bd3 {[%clk 0:02:47]}  Ngf6 {[%clk 0:02:58]} 6. c3 {[%clk 0:02:47]}  e6 {[%clk 0:02:54]} 7. Bc2 {[%clk 0:02:47]}  Be7 {[%clk 0:02:53]} 8. d4 {[%clk 0:02:47]}  b5 {[%clk 0:02:53]} 9. a4 {[%clk 0:02:45]}  Bb7 {[%clk 0:02:52]} 10. Re1 {[%clk 0:02:40]}  Qc7 {[%clk 0:02:52]} 11. axb5 {[%clk 0:02:31]}  axb5 {[%clk 0:02:51]} 12. Rxa8+ {[%clk 0:02:32]}  Bxa8 {[%clk 0:02:52]} 13. Na3 {[%clk 0:02:33]}  b4 {[%clk 0:02:49]} 14. Nb5 {[%clk 0:02:30]}  Qb8 {[%clk 0:02:49]} 15. c4 {[%clk 0:02:29]}  b3 {[%clk 0:02:42]} 16. Bxb3 {[%clk 0:02:26]}  Bxe4 {[%clk 0:02:37]} 17. Ba4 {[%clk 0:02:14]}  O-O {[%clk 0:02:33]} 18. d5 {[%clk 0:02:07]}  exd5 {[%clk 0:02:26]} 19. Nc3 {[%clk 0:02:00]}  Bxf3 {[%clk 0:02:18]} 20. Qxf3 {[%clk 0:01:59]}  Ne5 {[%clk 0:02:18]} 21. Qg3 {[%clk 0:01:55]}  d4 {[%clk 0:02:01]} 22. Nd5 {[%clk 0:01:42]}  Nxd5 {[%clk 0:02:00]} 23. cxd5 {[%clk 0:01:42]}  Qb4 {[%clk 0:02:00]} 0-1


[Site "https://www.chess.com"]

[Event "Titled Tuesday Blitz August 31 2021"]
[White "Qashashvili, Alexandre"]
[Black "Pires, Marcos Vinicius Torsani"]
[WhiteFideId "13600842"]
[BlackFideId "2118939"]
[WhiteElo "2316"]
[BlackElo "2273"]
[Result "1/2-1/2"]
[Round "11"]
[TimeControl "180+1"]
[Date "2021.08.31"]
[WhiteClock "0:01:34"]
[BlackClock "0:01:04"]

1. e4 {[%clk 0:03:00]}  c6 {[%clk 0:02:59]} 2. d4 {[%clk 0:02:55]}  d5 {[%clk 0:03:00]} 3. Nc3 {[%clk 0:02:54]}  dxe4 {[%clk 0:03:00]} 4. Nxe4 {[%clk 0:02:54]}  Bf5 {[%clk 0:03:01]} 5. Ng3 {[%clk 0:02:54]}  Bg6 {[%clk 0:03:01]} 6. Nf3 {[%clk 0:02:53]}  Nd7 {[%clk 0:03:01]} 7. Bd3 {[%clk 0:02:54]}  e6 {[%clk 0:02:59]} 8. Bxg6 {[%clk 0:02:53]}  hxg6 {[%clk 0:02:59]} 9. h3 {[%clk 0:02:53]}  Ngf6 {[%clk 0:02:59]} 10. Bf4 {[%clk 0:02:52]}  Qa5+ {[%clk 0:02:57]} 11. Qd2 {[%clk 0:02:47]}  Qxd2+ {[%clk 0:02:57]} 12. Bxd2 {[%clk 0:02:43]}  Bd6 {[%clk 0:02:56]} 13. Ne2 {[%clk 0:02:43]}  O-O-O {[%clk 0:02:55]} 14. O-O-O {[%clk 0:02:42]}  e5 {[%clk 0:02:49]} 15. dxe5 {[%clk 0:02:41]}  Nxe5 {[%clk 0:02:50]} 16. Nxe5 {[%clk 0:02:41]}  Bxe5 {[%clk 0:02:50]} 17. Bf4 {[%clk 0:02:42]}  Rhe8 {[%clk 0:02:43]} 18. Rxd8+ {[%clk 0:02:34]}  Kxd8 {[%clk 0:02:44]} 19. Rd1+ {[%clk 0:02:34]}  Kc7 {[%clk 0:02:42]} 20. Bxe5+ {[%clk 0:02:31]}  Rxe5 {[%clk 0:02:43]} 21. Ng3 {[%clk 0:02:29]}  Nd5 {[%clk 0:02:32]} 22. Rd4 {[%clk 0:02:09]}  c5 {[%clk 0:02:22]} 23. Re4 {[%clk 0:02:05]}  Kd6 {[%clk 0:02:18]} 24. Rxe5 {[%clk 0:02:01]}  Kxe5 {[%clk 0:02:19]} 25. Ne2 {[%clk 0:02:00]}  Nf4 {[%clk 0:02:15]} 26. Nxf4 {[%clk 0:01:59]}  Kxf4 {[%clk 0:02:16]} 27. Kd2 {[%clk 0:02:00]}  Ke4 {[%clk 0:02:07]} 28. Ke2 {[%clk 0:01:59]}  f5 {[%clk 0:02:02]} 29. f3+ {[%clk 0:01:55]}  Kf4 {[%clk 0:01:55]} 30. Kf2 {[%clk 0:01:56]}  g5 {[%clk 0:01:55]} 31. g3+ {[%clk 0:01:56]}  Ke5 {[%clk 0:01:55]} 32. Ke2 {[%clk 0:01:51]}  Kd4 {[%clk 0:01:50]} 33. Kd2 {[%clk 0:01:50]}  c4 {[%clk 0:01:46]} 34. c3+ {[%clk 0:01:51]}  Ke5 {[%clk 0:01:44]} 35. Ke2 {[%clk 0:01:40]}  b5 {[%clk 0:01:38]} 36. Kd2 {[%clk 0:01:38]}  a6 {[%clk 0:01:37]} 37. Ke2 {[%clk 0:01:38]}  g6 {[%clk 0:01:37]} 38. Kd2 {[%clk 0:01:38]}  f4 {[%clk 0:01:24]} 39. g4 {[%clk 0:01:35]}  Kd5 {[%clk 0:01:21]} 40. Kc2 {[%clk 0:01:34]}  Kc5 {[%clk 0:01:21]} 41. Kd2 {[%clk 0:01:34]}  Kd5 {[%clk 0:01:05]} 42. Kc2 {[%clk 0:01:34]}  Kc5 {[%clk 0:01:05]} 43. Kd2 {[%clk 0:01:34]}  Kd5 {[%clk 0:01:04]} 1/2-1/2


[Site "https://www.chess.com"]

[Event "Titled Tuesday Blitz August 31 2021"]
[White "Rakhmanov, Aleksandr"]
[Black "Xiong, Jeffery"]
[WhiteFideId "4173708"]
[BlackFideId "2047640"]
[WhiteElo "2498"]
[BlackElo "2724"]
[Result "0-1"]
[Round "11"]
[TimeControl "180+1"]
[Date "2021.08.31"]
[WhiteClock "0:00:03"]
[BlackClock "0:00:04"]

1. d4 {[%clk 0:03:00]}  Nf6 {[%clk 0:00:29]} 2. c4 {[%clk 0:02:58]}  c5 {[%clk 0:00:30]} 3. Nf3 {[%clk 0:02:56]}  cxd4 {[%clk 0:00:30]} 4. Nxd4 {[%clk 0:02:57]}  e6 {[%clk 0:00:31]} 5. Nc3 {[%clk 0:02:57]}  d5 {[%clk 0:00:30]} 6. cxd5 {[%clk 0:02:56]}  Nxd5 {[%clk 0:00:31]} 7. Qb3 {[%clk 0:02:38]}  Nf6 {[%clk 0:00:30]} 8. e3 {[%clk 0:02:33]}  a6 {[%clk 0:00:29]} 9. Be2 {[%clk 0:02:33]}  Bd6 {[%clk 0:00:29]} 10. O-O {[%clk 0:02:32]}  O-O {[%clk 0:00:30]} 11. Rd1 {[%clk 0:02:32]}  Qe7 {[%clk 0:00:31]} 12. e4 {[%clk 0:02:30]}  Nbd7 {[%clk 0:00:31]} 13. Bg5 {[%clk 0:02:26]}  h6 {[%clk 0:00:31]} 14. Bh4 {[%clk 0:02:26]}  Rd8 {[%clk 0:00:31]} 15. a4 {[%clk 0:02:21]}  Nc5 {[%clk 0:00:31]} 16. Qc2 {[%clk 0:02:20]}  g5 {[%clk 0:00:26]} 17. Bg3 {[%clk 0:02:20]}  Bxg3 {[%clk 0:00:27]} 18. hxg3 {[%clk 0:02:21]}  e5 {[%clk 0:00:28]} 19. Nf3 {[%clk 0:02:15]}  Bg4 {[%clk 0:00:28]} 20. Nd5 {[%clk 0:01:59]}  Nxd5 {[%clk 0:00:27]} 21. Rxd5 {[%clk 0:01:48]}  Rxd5 {[%clk 0:00:27]} 22. exd5 {[%clk 0:01:48]}  Qd6 {[%clk 0:00:16]} 23. Nxg5 {[%clk 0:01:46]}  hxg5 {[%clk 0:00:13]} 24. Bxg4 {[%clk 0:01:46]}  Qxd5 {[%clk 0:00:13]} 25. Rd1 {[%clk 0:01:35]}  Qe4 {[%clk 0:00:13]} 26. Qxc5 {[%clk 0:01:24]}  Qxg4 {[%clk 0:00:13]} 27. Re1 {[%clk 0:01:17]}  Re8 {[%clk 0:00:12]} 28. b4 {[%clk 0:01:11]}  Kg7 {[%clk 0:00:09]} 29. a5 {[%clk 0:01:06]}  Re6 {[%clk 0:00:09]} 30. Qc3 {[%clk 0:00:58]}  Qd4 {[%clk 0:00:09]} 31. Qc1 {[%clk 0:00:28]}  Kg6 {[%clk 0:00:07]} 32. Qb1+ {[%clk 0:00:28]}  e4 {[%clk 0:00:07]} 33. Rd1 {[%clk 0:00:27]}  Qe5 {[%clk 0:00:07]} 34. Rc1 {[%clk 0:00:26]}  Qd4 {[%clk 0:00:03]} 35. Rc5 {[%clk 0:00:19]}  Re5 {[%clk 0:00:04]} 36. Rc7 {[%clk 0:00:17]}  Rf5 {[%clk 0:00:04]} 37. Qc2 {[%clk 0:00:15]}  Qxb4 {[%clk 0:00:04]} 38. Rc4 {[%clk 0:00:14]}  Qe1+ {[%clk 0:00:04]} 39. Kh2 {[%clk 0:00:14]}  Rxf2 {[%clk 0:00:04]} 40. Qb3 {[%clk 0:00:08]}  Qe2 {[%clk 0:00:04]} 41. Qb6+ {[%clk 0:00:06]}  f6 {[%clk 0:00:04]} 42. Kh3 {[%clk 0:00:05]}  Rxg2 {[%clk 0:00:04]} 43. Rxe4 {[%clk 0:00:03]}  Rh2# {[%clk 0:00:04]} 0-1


[Site "https://www.chess.com"]

[Event "Titled Tuesday Blitz August 31 2021"]
[White "Romanchuk, Viktor"]
[Black "Quintiliano Pinto, Renato R."]
[WhiteFideId "14109271"]
[BlackFideId "2117568"]
[WhiteElo "2242"]
[BlackElo "2439"]
[Result "0-1"]
[Round "11"]
[TimeControl "180+1"]
[Date "2021.08.31"]
[WhiteClock "0:00:01"]
[BlackClock "0:00:07"]

1. d4 {[%clk 0:03:00]}  d5 {[%clk 0:02:57]} 2. c4 {[%clk 0:02:57]}  c6 {[%clk 0:02:57]} 3. Nc3 {[%clk 0:02:57]}  Nf6 {[%clk 0:02:57]} 4. e3 {[%clk 0:02:57]}  e6 {[%clk 0:02:57]} 5. Nf3 {[%clk 0:02:56]}  Nbd7 {[%clk 0:02:57]} 6. Qc2 {[%clk 0:02:57]}  Bd6 {[%clk 0:02:57]} 7. b3 {[%clk 0:02:57]}  O-O {[%clk 0:02:57]} 8. Bb2 {[%clk 0:02:57]}  e5 {[%clk 0:02:55]} 9. dxe5 {[%clk 0:02:56]}  Nxe5 {[%clk 0:02:54]} 10. O-O-O {[%clk 0:02:56]}  Qe7 {[%clk 0:02:46]} 11. cxd5 {[%clk 0:02:45]}  Bg4 {[%clk 0:02:29]} 12. Be2 {[%clk 0:02:22]}  cxd5 {[%clk 0:02:24]} 13. Nxe5 {[%clk 0:02:07]}  Bxe2 {[%clk 0:02:22]} 14. Qxe2 {[%clk 0:02:04]}  Bxe5 {[%clk 0:02:21]} 15. Kb1 {[%clk 0:01:36]}  Rac8 {[%clk 0:02:14]} 16. Qd3 {[%clk 0:01:34]}  Bxc3 {[%clk 0:02:10]} 17. Bxc3 {[%clk 0:01:33]}  Ne4 {[%clk 0:02:11]} 18. Be1 {[%clk 0:01:33]}  Qg5 {[%clk 0:01:44]} 19. Rg1 {[%clk 0:01:24]}  Rfd8 {[%clk 0:01:35]} 20. h4 {[%clk 0:00:48]}  Qf6 {[%clk 0:00:48]} 21. f3 {[%clk 0:00:45]}  Nc5 {[%clk 0:00:48]} 22. Qd4 {[%clk 0:00:39]}  Qg6+ {[%clk 0:00:47]} 23. Ka1 {[%clk 0:00:35]}  Ne6 {[%clk 0:00:45]} 24. Qe5 {[%clk 0:00:32]}  d4 {[%clk 0:00:25]} 25. e4 {[%clk 0:00:29]}  Rc5 {[%clk 0:00:21]} 26. Qg3 {[%clk 0:00:25]}  Qf6 {[%clk 0:00:22]} 27. Bb4 {[%clk 0:00:17]}  Rb5 {[%clk 0:00:17]} 28. Ba3 {[%clk 0:00:16]}  d3+ {[%clk 0:00:13]} 29. Bb2 {[%clk 0:00:16]}  Qe7 {[%clk 0:00:13]} 30. Rd2 {[%clk 0:00:14]}  Qb4 {[%clk 0:00:11]} 31. Rgd1 {[%clk 0:00:13]}  Rc5 {[%clk 0:00:07]} 32. Rxd3 {[%clk 0:00:10]}  Rxd3 {[%clk 0:00:08]} 33. Rxd3 {[%clk 0:00:11]}  Rc8 {[%clk 0:00:08]} 34. Rd1 {[%clk 0:00:10]}  Qc5 {[%clk 0:00:08]} 35. Rc1 {[%clk 0:00:09]}  Qf8 {[%clk 0:00:09]} 36. Rxc8 {[%clk 0:00:06]}  Qxc8 {[%clk 0:00:10]} 37. Kb1 {[%clk 0:00:06]}  h6 {[%clk 0:00:09]} 38. Qe5 {[%clk 0:00:06]}  Qc6 {[%clk 0:00:09]} 39. g4 {[%clk 0:00:04]}  f6 {[%clk 0:00:09]} 40. Qd5 {[%clk 0:00:04]}  Qa6 {[%clk 0:00:09]} 41. Qd1 {[%clk 0:00:03]}  Kh8 {[%clk 0:00:07]} 42. Qc2 {[%clk 0:00:01]}  Qd6 {[%clk 0:00:07]} 43. Qc1 {[%clk 0:00:01]}  Nc5 {[%clk 0:00:07]} 0-1


[Site "https://www.chess.com"]